Workbook

Sheet Table 7.1
A1: Table 7.1 Quarterly Demand for Tahoe Salt
A2: Year, Qtr | B2: Period t | C2: Demand Dt
A3: 1,2 | B3: 1 | C3: 8000
A4: 1,3 | B4: 2 | C4: 13000
A5: 1,4 | B5: 3 | C5: 23000
A6: 2,1 | B6: 4 | C6: 34000
A7: 2,2 | B7: 5 | C7: 10000
A8: 2,3 | B8: 6 | C8: 18000
A9: 2,4 | B9: 7 | C9: 23000
A10: 3,1 | B10: 8 | C10: 38000
A11: 3,2 | B11: 9 | C11: 12000
A12: 3,3 | B12: 10 | C12: 13000
A13: 3,4 | B13: 11 | C13: 32000
A14: 4,1 | B14: 12 | C14: 41000

Sheet Figure 7.2 & 7.3
A1: Figure 7.2 Deseasonalized Demand for Tahoe Salt
A2: Period t | B2: Demand Dt | C2: Deseasonalized Demand
A3: 1 | B3: 8000
A4: 2 | B4: 13000
A5: 3 | B5: 23000 | C5: =(B3+B7+2*SUM(B4:B6))/8 -> 19750
A6: 4 | B6: 34000 | C6: 20625
A7: 5 | B7: 10000 | C7: 21250
A8: 6 | B8: 18000 | C8: 21750
A9: 7 | B9: 23000 | C9: 22500
A10: 8 | B10: 38000 | C10: 22125
A11: 9 | B11: 12000 | C11: 22625
A12: 10 | B12: 13000 | C12: 24125
A13: 11 | B13: 32000
A14: 12 | B14: 41000
A16: Equation 7.2 Deseasonalizing Demand
A24: where:
A25: D = | B25: Demand
A26: p = | B26: periodicity
A27: t = | B27: period

Sheet Figure7.4
A1: Historical Data
A2: Period t | B2: Demand Dt | C2: Deseasonalized Demand (Eqn 7.4) | D2: Seasonal Factor (Eqn 7.5) | E2: Estimate (Eqn 7.6) | F2: Forecast | G2: Error
A3: 1 | B3: 8000 | C3: =18439+524*A3 -> 18963 | D3: =B3/C3 -> 0.421874176 | E3: =ROUND((D3+D7+D11)/3,2) -> 0.47 | F3: =C3*$E$3 -> 8912.61 | G3: =F3-B3 -> 912.61
A4: 2 | B4: 13000 | C4: 19487 | D4: 0.6671114076 | E4: =ROUND((D4+D8+D12)/3,2) -> 0.68 | F4: =C4*$E$4 -> 13251.16 | G4: =F4-B4 -> 251.16
A5: 3 | B5: 23000 | C5: 20011 | D5: 1.149367848 | E5: =ROUND((D5+D9+D13)/3,2) -> 1.17 | F5: =C5*$E$5 -> 23412.87 | G5: 412.87
A6: 4 | B6: 34000 | C6: 20535 | D6: 1.655709764 | E6: =ROUNDUP((D6+D10+D14)/3,2) -> 1.67 | F6: =C6*$E$6 -> 34293.45 | G6: 293.45
A7: 5 | B7: 10000 | C7: 21059 | D7: 0.474856356 | F7: =C7*$E$3 -> 9897.73 | G7: -102.27
A8: 6 | B8: 18000 | C8: 21583 | D8: 0.8339897141 | F8: =C8*$E$4 -> 14676.44 | G8: -3323.56
A9: 7 | B9: 23000 | C9: 22107 | D9: 1.040394445 | F9: =C9*$E$5 -> 25865.19 | G9: 2865.19
A10: 8 | B10: 38000 | C10: 22631 | D10: 1.679112721 | F10: =C10*$E$6 -> 37793.77 | G10: -206.23
A11: 9 | B11: 12000 | C11: 23155 | D11: 0.518246599 | F11: =C11*$E$3 -> 10882.85 | G11: -1117.15
A12: 10 | B12: 13000 | C12: 23679 | D12: 0.549009671 | F12: =C12*$E$4 -> 16101.72 | G12: 3101.72
A13: 11 | B13: 32000 | C13: 24203 | D13: 1.322150147 | F13: =C13*$E$5 -> 28317.51 | G13: -3682.49
A14: 12 | B14: 41000 | C14: 24727 | D14: 1.658106523 | F14: =C14*$E$6 -> 41294.09 | G14: 294.09
A16: Forecasted Data
A17: Year, Qtr | B17: Period t | C17: Forecasted Demand
A18: 03,2 | B18: 13 | C18: =((18439+(524*B18)))*E3 -> 11867.97
A19: 03,3 | B19: 14 | C19: =((18439+(524*B19)))*E4 -> 17527
A20: 03,4 | B20: 15 | C20: =((18439+(524*B20)))*E5 -> 30769.83
A21: 04,1 | B21: 16 | C21: =((18439+(524*B21)))*E6 -> 44794.41

Sheet Figure7.7
A1: Tahoe Salt Forecasts Using Four-Period Moving Average
A2: Period t | B2: Demand Dt | C2: Level Lt | D2: Forecast Ft | E2: Error Et | F2: Absolute Error At | G2: Mean Squared Error MSEt | H2: MADt | I2: % Error | J2: MAPEt | K2: TSt
A3: 1 | B3: 8000
A4: 2 | B4: 13000
A5: 3 | B5: 23000
A6: 4 | B6: 34000 | C6: =AVERAGE(B3:B6) -> 19500
A7: 5 | B7: 10000 | C7: =AVERAGE(B4:B7) -> 20000 | D7: =C6 -> 19500 | E7: =D7-B7 -> 9500 | F7: =ABS(E7) -> 9500 | G7: =SUMSQ($F$7:F7)/(A7-4) -> 90250000 | H7: =SUM($F$7:F7)/(A7-4) -> 9500 | I7: =100*F7/B7 -> 95 | J7: =AVERAGE($I$7:I7) -> 95 | K7: =SUM($E$7:E7)/H7 -> 1
A8: 6 | B8: 18000 | C8: =AVERAGE(B5:B8) -> 21250 | D8: =C7 -> 20000 | E8: =D8-B8 -> 2000 | F8: =ABS(E8) -> 2000 | G8: =SUMSQ($F$7:F8)/(A8-4) -> 47125000 | H8: =SUM($F$7:F8)/(A8-4) -> 5750 | I8: =100*F8/B8 -> 11.11111111 | J8: =AVERAGE($I$7:I8) -> 53.05555556 | K8: =SUM($E$7:E8)/H8 -> 2
A9: 7 | B9: 23000 | C9: 21250 | D9: 21250 | E9: -1750 | F9: 1750 | G9: =SUMSQ($F$7:F9)/(A9-4) -> 32437500 | H9: =SUM($F$7:F9)/(A9-4) -> 4416.666667 | I9: 7.608695652 | J9: =AVERAGE($I$7:I9) -> 37.90660225 | K9: =SUM($E$7:E9)/H9 -> 2.20754717
A10: 8 | B10: 38000 | C10: 22250 | D10: 21250 | E10: -16750 | F10: 16750 | G10: =SUMSQ($F$7:F10)/(A10-4) -> 94468750 | H10: =SUM($F$7:F10)/(A10-4) -> 7500 | I10: 44.07894737 | J10: =AVERAGE($I$7:I10) -> 39.44968853 | K10: =SUM($E$7:E10)/H10 -> -0.9333333333
A11: 9 | B11: 12000 | C11: 22750 | D11: 22250 | E11: 10250 | F11: 10250 | G11: =SUMSQ($F$7:F11)/(A11-4) -> 96587500 | H11: =SUM($F$7:F11)/(A11-4) -> 8050 | I11: 85.41666667 | J11: =AVERAGE($I$7:I11) -> 48.64308416 | K11: =SUM($E$7:E11)/H11 -> 0.4037267081
A12: 10 | B12: 13000 | C12: 21500 | D12: 22750 | E12: 9750 | F12: 9750 | G12: =SUMSQ($F$7:F12)/(A12-4) -> 96333333.33 | H12: =SUM($F$7:F12)/(A12-4) -> 8333.333333 | I12: 75 | J12: =AVERAGE($I$7:I12) -> 53.03590347 | K12: =SUM($E$7:E12)/H12 -> 1.56
A13: 11 | B13: 32000 | C13: 23750 | D13: 21500 | E13: -10500 | F13: 10500 | G13: =SUMSQ($F$7:F13)/(A13-4) -> 98321428.57 | H13: =SUM($F$7:F13)/(A13-4) -> 8642.857143 | I13: 32.8125 | J13: =AVERAGE($I$7:I13) -> 50.14684583 | K13: =SUM($E$7:E13)/H13 -> 0.2892561983
A14: 12 | B14: 41000 | C14: 24500 | D14: 23750 | E14: -17250 | F14: 17250 | G14: =SUMSQ($F$7:F14)/(A14-4) -> 123226562.5 | H14: =SUM($F$7:F14)/(A14-4) -> 9718.75 | I14: 42.07317073 | J14: =AVERAGE($I$7:I14) -> 49.13763644 | K14: =SUM($E$7:E14)/H14 -> -1.517684887
A15: 13 | D15: =C14 -> 24500
A16: 14 | D16: =$C$14 -> 24500
A17: 15 | D17: =$C$14 -> 24500
A18: 16 | D18: =$C$14 -> 24500

Sheet Figure7.8
A1: Tahoe Salt Forecasts Using Simple Exponential Smoothing
A2: Period t | B2: Demand Dt | C2: Level Lt | D2: Forecast Ft | E2: Error Et | F2: Absolute Error At | G2: Mean Squared Error MSEt | H2: MADt | I2: % Error | J2: MAPEt | K2: TSt
A3: 0 | C3: =AVERAGE(B4:B15) -> 22083.33333
A4: 1 | B4: 8000 | C4: =$B$21*B4+(1-$B$21)*C3 -> 20675 | D4: =C3 -> 22083.33333 | E4: =D4-B4 -> 14083.33333 | F4: =ABS(E4) -> 14083.33333 | G4: =SUMSQ($E$4:E4)/A4 -> 198340277.8 | H4: =SUM($F$4:F4)/A4 -> 14083.33333 | I4: =F4*100/B4 -> 176.0416667 | J4: =AVERAGE($I$4:I4) -> 176.0416667 | K4: =SUM($E$4:E4)/H4 -> 1
A5: 2 | B5: 13000 | C5: 19907.5 | D5: =C4 -> 20675 | E5: =D5-B5 -> 7675 | F5: =ABS(E5) -> 7675 | G5: =SUMSQ($E$4:E5)/A5 -> 128622951.4 | H5: =SUM($F$4:F5)/A5 -> 10879.16667 | I5: =F5*100/B5 -> 59.03846154 | J5: =AVERAGE($I$4:I5) -> 117.5400641 | K5: =SUM($E$4:E5)/H5 -> 2
A6: 3 | B6: 23000 | C6: 20216.75 | D6: =C5 -> 19907.5 | E6: =D6-B6 -> -3092.5 | F6: =ABS(E6) -> 3092.5 | G6: =SUMSQ($E$4:E6)/A6 -> 88936486.34 | H6: =SUM($F$4:F6)/A6 -> 8283.611111 | I6: 13.44565217 | J6: =AVERAGE($I$4:I6) -> 82.84192679 | K6: =SUM($E$4:E6)/H6 -> 2.253344958
A7: 4 | B7: 34000 | C7: 21595.075 | D7: =C6 -> 20216.75 | E7: =D7-B7 -> -13783.25 | F7: =ABS(E7) -> 13783.25 | G7: =SUMSQ($E$4:E7)/A7 -> 114196859.9 | H7: =SUM($F$4:F7)/A7 -> 9658.520833 | I7: 40.53897059 | J7: =AVERAGE($I$4:I7) -> 72.26618774 | K7: =SUM($E$4:E7)/H7 -> 0.505520816
A8: 5 | B8: 10000 | C8: 20435.5675 | D8: =C7 -> 21595.075 | E8: =D8-B8 -> 11595.075 | F8: =ABS(E8) -> 11595.075 | G8: =SUMSQ($E$4:E8)/A8 -> 118246640.8 | H8: =SUM($F$4:F8)/A8 -> 10045.83167 | I8: 115.95075 | J8: =AVERAGE($I$4:I8) -> 81.00310019 | K8: =SUM($E$4:E8)/H8 -> 1.640248302
A9: 6 | B9: 18000 | C9: 20192.01075 | D9: 20435.5675 | E9: 2435.5675 | F9: 2435.5675 | G9: =SUMSQ($E$4:E9)/A9 -> 99527532.15 | H9: =SUM($F$4:F9)/A9 -> 8777.454306 | I9: 13.53093056 | J9: =AVERAGE($I$4:I9) -> 69.75773859 | K9: =SUM($E$4:E9)/H9 -> 2.154750703
A10: 7 | B10: 23000 | C10: 20472.80968 | D10: 20192.01075 | E10: -2807.98925 | F10: 2807.98925 | G10: =SUMSQ($E$4:E10)/A10 -> 86435713.79 | H10: =SUM($F$4:F10)/A10 -> 7924.673583 | I10: 12.20864891 | J10: =AVERAGE($I$4:I10) -> 61.53644006 | K10: =SUM($E$4:E10)/H10 -> 2.032290215
A11: 8 | B11: 38000 | C11: 22225.52871 | D11: 20472.80968 | E11: -17527.19032 | F11: 17527.19032 | G11: =SUMSQ($E$4:E11)/A11 -> 114031549.7 | H11: =SUM($F$4:F11)/A11 -> 9124.988176 | I11: 46.12418507 | J11: =AVERAGE($I$4:I11) -> 59.60990819 | K11: =SUM($E$4:E11)/H11 -> -0.155830749
A12: 9 | B12: 12000 | C12: 21202.97584 | D12: 22225.52871 | E12: 10225.52871 | F12: 10225.52871 | G12: =SUMSQ($E$4:E12)/A12 -> 112979315 | H12: =SUM($F$4:F12)/A12 -> 9247.270457 | I12: 85.21273923 | J12: =AVERAGE($I$4:I12) -> 62.45466719 | K12: =SUM($E$4:E12)/H12 -> 0.9520187613
A13: 10 | B13: 13000 | C13: 20382.67825 | D13: 21202.97584 | E13: 8202.975837 | F13: 8202.975837 | G13: =SUMSQ($E$4:E13)/A13 -> 108410264.7 | H13: =SUM($F$4:F13)/A13 -> 9142.840995 | I13: 63.09981413 | J13: =AVERAGE($I$4:I13) -> 62.51918189 | K13: =SUM($E$4:E13)/H13 -> 1.860094779
A14: 11 | B14: 32000 | C14: 21544.41043 | D14: 20382.67825 | E14: -11617.32175 | F14: 11617.32175 | G14: =SUMSQ($E$4:E14)/A14 -> 110824073.8 | H14: =SUM($F$4:F14)/A14 -> 9367.793791 | I14: 36.30413046 | J14: =AVERAGE($I$4:I14) -> 60.13599539 | K14: =SUM($E$4:E14)/H14 -> 0.5752933056
A15: 12 | B15: 41000 | C15: 23489.96938 | D15: 21544.41043 | E15: -19455.58957 | F15: 19455.58957 | G15: =SUMSQ($E$4:E15)/A15 -> 133132064.8 | H15: =SUM($F$4:F15)/A15 -> 10208.44344 | I15: 47.45265749 | J15: =AVERAGE($I$4:I15) -> 59.07905057 | K15: =SUM($E$4:E15)/H15 -> -1.377914331
D16: =$C$15 -> 23489.96938 | G16: =SQRT(G15) -> 11538.28691 | H16: =1.25*H15 -> 12760.5543
D17: =$C$15 -> 23489.96938
D18: =$C$15 -> 23489.96938
D19: =$C$15 -> 23489.96938
A21: alpha | B21: 0.1

Sheet Figure7.9
A1: Forecasts Using Trend-Corrected Exponential Smoothing (Holt's Model)
A2: Period t | B2: Demand Dt | C2: Level Lt | D2: Trend Tt | E2: Forecast Ft | F2: Error Et | G2: Absolute Error At | H2: Mean Squared Error MSEt | I2: MADt | J2: % Error | K2: MAPEt | L2: TSt
A3: 0 | C3: 12015 | D3: 1549
A4: 1 | B4: 8000 | C4: =$B$21*B4+(1-$B$21)*(C3+D3) -> 13007.6 | D4: =$B$22*(C4-C3)+(1-$B$22)*D3 -> 1437.72 | E4: =C3+D3 -> 13564 | F4: =E4-B4 -> 5564 | G4: =ABS(F4) -> 5564 | H4: =SUMSQ($F$4:F4)/A4 -> 30958096 | I4: =SUM($G$4:G4)/A4 -> 5564 | J4: =100*G4/B4 -> 69.55 | K4: =AVERAGE($J$4:J4) -> 69.55 | L4: =SUM($F$4:F4)/I4 -> 1
A5: 2 | B5: 13000 | C5: 14300.788 | D5: 1408.8136 | E5: =C4+D4 -> 14445.32 | F5: 1445.32 | G5: 1445.32 | H5: =SUMSQ($F$4:F5)/A5 -> 16523522.95 | I5: =SUM($G$4:G5)/A5 -> 3504.66 | J5: =100*G5/B5 -> 11.11784615 | K5: =AVERAGE($J$4:J5) -> 40.33392308 | L5: =SUM($F$4:F5)/I5 -> 2
A6: 3 | B6: 23000 | C6: 16438.64144 | D6: 1554.621568 | E6: 15709.6016 | F6: -7290.3984 | G6: 7290.3984 | H6: =SUMSQ($F$4:F6)/A6 -> 28732318.24 | I6: =SUM($G$4:G6)/A6 -> 4766.5728 | J6: 31.69738435 | K6: =AVERAGE($J$4:J6) -> 37.45507683 | L6: =SUM($F$4:F6)/I6 -> -0.05896865773
A7: 4 | B7: 34000 | C7: 19593.93671 | D7: 1874.756308 | E7: 17993.26301 | F7: -16006.73699 | G7: 16006.73699 | H7: =SUMSQ($F$4:F7)/A7 -> 85603145.97 | I7: =SUM($G$4:G7)/A7 -> 7576.613848 | J7: 47.07863821 | K7: =AVERAGE($J$4:J7) -> 39.86096718 | L7: =SUM($F$4:F7)/I7 -> -2.14974865
A8: 5 | B8: 10000 | C8: 20321.82371 | D8: 1645.382448 | E8: 21468.69302 | F8: 11468.69302 | G8: 11468.69302 | H8: =SUMSQ($F$4:F8)/A8 -> 94788700.67 | I8: =SUM($G$4:G8)/A8 -> 8355.029681 | J8: 114.6869302 | K8: =AVERAGE($J$4:J8) -> 54.82615977 | L8: =SUM($F$4:F8)/I8 -> -0.5767929691
A9: 6 | B9: 18000 | C9: 21570.48554 | D9: 1566.038324 | E9: 21967.20616 | F9: 3967.206161 | G9: 3967.206161 | H9: =SUMSQ($F$4:F9)/A9 -> 81613704.68 | I9: =SUM($G$4:G9)/A9 -> 7623.725761 | J9: 22.04003423 | K9: =AVERAGE($J$4:J9) -> 49.36180552 | L9: =SUM($F$4:F9)/I9 -> -0.111745391
A10: 7 | B10: 23000 | C10: 23122.87148 | D10: 1563.307847 | E10: 23136.52387 | F10: 136.5238693 | G10: 136.5238693 | H10: =SUMSQ($F$4:F10)/A10 -> 69957266.69 | I10: =SUM($G$4:G10)/A10 -> 6554.125491 | J10: 0.5935820404 | K10: =AVERAGE($J$4:J10) -> 42.39491645 | L10: =SUM($F$4:F10)/I10 -> -0.109151457
A11: 8 | B11: 38000 | C11: 26017.5614 | D11: 1829.58426 | E11: 24686.17933 | F11: -13313.82067 | G11: 13313.82067 | H11: =SUMSQ($F$4:F11)/A11 -> 83369835.96 | I11: =SUM($G$4:G11)/A11 -> 7399.087389 | J11: 35.03637019 | K11: =AVERAGE($J$4:J11) -> 41.47509816 | L11: =SUM($F$4:F11)/I11 -> -1.896073432
A12: 9 | B12: 12000 | C12: 26262.43109 | D12: 1512.641347 | E12: 27847.14566 | F12: 15847.14566 | G12: 15847.14566 | H12: =SUMSQ($F$4:F12)/A12 -> 102010079.2 | I12: =SUM($G$4:G12)/A12 -> 8337.760529 | J12: 132.0595471 | K12: =AVERAGE($J$4:J12) -> 51.54003694 | L12: =SUM($F$4:F12)/I12 -> 0.2180360821
A13: 10 | B13: 13000 | C13: 26297.56519 | D13: 1217.139898 | E13: 27775.07244 | F13: 14775.07244 | G13: 14775.07244 | H13: =SUMSQ($F$4:F13)/A13 -> 113639347.9 | I13: =SUM($G$4:G13)/A13 -> 8981.49172 | J13: 113.6544034 | K13: =AVERAGE($J$4:J13) -> 57.75147358 | L13: =SUM($F$4:F13)/I13 -> 1.8474665
A14: 11 | B14: 32000 | C14: 27963.23458 | D14: 1306.845797 | E14: 27514.70509 | F14: -4485.294907 | G14: 4485.294907 | H14: =SUMSQ($F$4:F14)/A14 -> 105137395.4 | I14: =SUM($G$4:G14)/A14 -> 8572.746555 | J14: 14.01654658 | K14: =AVERAGE($J$4:J14) -> 53.77557113 | L14: =SUM($F$4:F14)/I14 -> 1.412349017
A15: 12 | B15: 41000 | C15: 30443.07234 | D15: 1541.444189 | E15: 29270.08038 | F15: -11729.91962 | G15: 11729.91962 | H15: =SUMSQ($F$4:F15)/A15 -> 107841863.6 | I15: =SUM($G$4:G15)/A15 -> 8835.844311 | J15: 28.60956005 | K15: =AVERAGE($J$4:J15) -> 51.67840354 | L15: =SUM($F$4:F15)/I15 -> 0.04275658753
E16: =$C$15+$D$15 -> 31984.51653
E17: =$C$15+2*$D$15 -> 33525.96072
E18: =$C$15+3*$D$15 -> 35067.40491
E19: =$C$15+4*$D$15 -> 36608.8491
A21: alpha | B21: 0.1
A22: Beta | B22: 0.2

Sheet Figure7.10
A1: Forecasts Using Trend and Seasonality Corrected Exponential Smoothing)
A2: Period t | B2: Demand Dt | C2: Level Lt | D2: Trend Tt | E2: Seasonal Factor St | F2: Forecast Ft | G2: Error Et | H2: Absolute Error At | I2: Mean Squared Error MSEt | J2: MADt | K2: % Error | L2: MAPEt | M2: TSt
C3: 18439 | D3: 524
A4: 1 | B4: 8000 | C4: =$B$21*(B4/E4)+(1-$B$21)*(C3+D3) -> 18865.91383 | D4: =$B$22*(C4-C3)+(1-$B$22)*D3 -> 514.291383 | E4: 0.47 | F4: =(C3+D3)*E4 -> 8912.61 | G4: =F4-B4 -> 912.61 | H4: =ABS(G4) -> 912.61 | I4: =SUMSQ($G$4:G4)/A4 -> 832857.0121 | J4: =SUM($H$4:H4)/A4 -> 912.61 | K4: =100*H4/B4 -> 11.407625 | L4: =AVERAGE($K$4:K4) -> 11.407625 | M4: =SUM($G$4:G4)/J4 -> 1
A5: 2 | B5: 13000 | C5: 19367.07731 | D5: 512.9785922 | E5: 0.68 | F5: =(C4+D4)*E5 -> 13178.53954 | G5: 178.5395447 | H5: 178.5395447 | I5: =SUMSQ($G$4:G5)/A5 -> 432366.6906 | J5: =SUM($H$4:H5)/A5 -> 545.5747723 | K5: =100*H5/B5 -> 1.373381113 | L5: =AVERAGE($K$4:K5) -> 6.390503056 | M5: =SUM($G$4:G5)/J5 -> 2
A6: 3 | B6: 23000 | C6: 19868.95909 | D6: 511.868911 | E6: 1.17 | F6: 23259.6654 | G6: 259.6653998 | H6: 259.6653998 | I6: =SUMSQ($G$4:G6)/A6 -> 310719.8337 | J6: =SUM($H$4:H6)/A6 -> 450.2716482 | K6: 1.128979999 | L6: =AVERAGE($K$4:K6) -> 4.636662037 | M6: =SUM($G$4:G6)/J6 -> 3
A7: 4 | B7: 34000 | C7: 20379.75067 | D7: 511.7611782 | E7: 1.67 | F7: 34035.98275 | G7: 35.98275388 | H7: 35.98275388 | I7: =SUMSQ($G$4:G7)/A7 -> 233363.5649 | J7: =SUM($H$4:H7)/A7 -> 346.6994246 | K7: 0.105831629 | L7: =AVERAGE($K$4:K7) -> 3.503954435 | M7: =SUM($G$4:G7)/J7 -> 4
A8: 5 | B8: 10000 | C8: 20921.27047 | D8: 514.7370408 | E8: =$B$23*(B4/C4)+(1-$B$23)*E4 -> 0.4654045189 | F8: 9723.004021 | G8: -276.9959795 | H8: 276.9959795 | I8: =SUMSQ($G$4:G8)/A8 -> 202036.2064 | J8: =SUM($H$4:H8)/A8 -> 332.7587356 | K8: 2.769959795 | L8: =AVERAGE($K$4:K8) -> 3.357155507 | M8: =SUM($G$4:G8)/J8 -> 3.335154273
A9: 6 | B9: 18000 | C9: 21689.44333 | D9: 540.0806227 | E9: 0.6791242222 | F9: 14557.71193 | G9: -3442.288071 | H9: 3442.288071 | I9: =SUMSQ($G$4:G9)/A9 -> 2143254.699 | J9: =SUM($H$4:H9)/A9 -> 851.0136248 | K9: 19.12382262 | L9: =AVERAGE($K$4:K9) -> 5.984933359 | M9: =SUM($G$4:G9)/J9 -> -2.740833148
A10: 7 | B10: 23000 | C10: 22101.99786 | D10: 527.3280131 | E10: 1.168758455 | F10: 25980.94407 | G10: 2980.944066 | H10: 2980.944066 | I10: =SUMSQ($G$4:G10)/A10 -> 3106507.96 | J10: =SUM($H$4:H10)/A10 -> 1155.289402 | K10: 12.96062638 | L10: =AVERAGE($K$4:K10) -> 6.981460932 | M10: =SUM($G$4:G10)/J10 -> 0.5612946099
A11: 8 | B11: 38000 | C11: 22635.69841 | D11: 527.9652672 | E11: 1.669832267 | F11: 37787.17852 | G11: -212.8214841 | H11: 212.8214841 | I11: =SUMSQ($G$4:G11)/A11 -> 2723856.088 | J11: =SUM($H$4:H11)/A11 -> 1037.480912 | K11: 0.5600565371 | L11: =AVERAGE($K$4:K11) -> 6.178785383 | M11: =SUM($G$4:G11)/J11 -> 0.4198980675
A12: 9 | B12: 12000 | C12: 23291.20678 | D12: 540.7195772 | E12: 0.4666623115 | F12: 10809.60883 | G12: -1190.391165 | H12: 1190.391165 | I12: =SUMSQ($G$4:G12)/A12 -> 2578653.315 | J12: =SUM($H$4:H12)/A12 -> 1054.47094 | K12: 9.919926376 | L12: =AVERAGE($K$4:K12) -> 6.594467716 | M12: =SUM($G$4:G12)/J12 -> -0.7157664625
A13: 10 | B13: 13000 | C13: 23576.65763 | D13: 515.1927044 | E13: 0.6942014817 | F13: 16544.15859 | G13: 3544.15859 | H13: 3544.15859 | I13: =SUMSQ($G$4:G13)/A13 -> 3576893.994 | J13: =SUM($H$4:H13)/A13 -> 1303.439705 | K13: 27.26275839 | L13: =AVERAGE($K$4:K13) -> 8.661296783 | M13: =SUM($G$4:G13)/J13 -> 2.140032749
A14: 11 | B14: 32000 | C14: 24271.406 | D14: 533.1482709 | E14: 1.1559456 | F14: 27848.86839 | G14: -4151.13161 | H14: 4151.13161 | I14: =SUMSQ($G$4:G14)/A14 -> 4818257.599 | J14: =SUM($H$4:H14)/A14 -> 1562.320788 | K14: 12.97228628 | L14: =AVERAGE($K$4:K14) -> 9.053204919 | M14: =SUM($G$4:G14)/J14 -> -0.8716058605
A15: 12 | B15: 41000 | C15: 24791.33844 | D15: 531.8266883 | E15: 1.670725459 | F15: 41441.60033 | G15: 441.6003289 | H15: 441.6003289 | I15: =SUMSQ($G$4:G15)/A15 -> 4432987.037 | J15: =SUM($H$4:H15)/A15 -> 1468.927416 | K15: 1.077073973 | L15: =AVERAGE($K$4:K15) -> 8.38852734 | M15: =SUM($G$4:G15)/J15 -> -0.6263942082
A16: 13 | E16: 0.47151767 | F16: =($C$15+$D$15)*E16 -> 11940.31982
A17: 14 | E17: 0.6799206167 | F17: =E17*($C$15+2*$D$15) -> 17579.34198
A18: 15 | E18: 1.172193423 | F18: =E18*($C$15+3*$D$15) -> 30930.4551
A19: 16 | E19: 1.669033254 | F19: =E19*($C$15+4*$D$15) -> 44928.11399
A21: alpha | B21: 0.05
A22: Beta | B22: 0.1
A23: Gamma | B23: 0.1

Sheet Regression sheet
A1: REGRESSION SUMMARY OUTPUT
A3: Regression Statistics
A4: Multiple R | B4: 0.9580652366
A5: R Square | B5: 0.9178889975
A6: Adjusted R Square | B6: 0.9042038305
A7: Standard Error | B7: 414.5033124
A8: Observations | B8: 8
A10: ANOVA
B11: df | C11: SS | D11: MS | E11: F | F11: Significance F
A12: Regression | B12: 1 | C12: 11523809.52 | D12: 11523809.52 | E12: 67.07181523 | F12: 0.0001786086247
A13: Residual | B13: 6 | C13: 1030877.976 | D13: 171812.996
A14: Total | B14: 7 | C14: 12554687.5
B16: Coefficients | C16: Standard Error | D16: t Stat | E16: P-value | F16: Lower 95% | G16: Upper 95% | H16: Lower 95.0% | I16: Upper 95.0%
A17: Intercept | B17: 18438.9881 | C17: 440.8087079 | D17: 41.82990891 | E17: 1.248761647e-08 | F17: 17360.36726 | G17: 19517.60894 | H17: 17360.36726 | I17: 19517.60894
A18: X Variable 1 | B18: 523.8095238 | C18: 63.95924968 | D18: 8.18973841 | E18: 0.0001786086247 | F18: 367.3067633 | G18: 680.3122843 | H18: 367.3067633 | I18: 680.3122843

Sheet hlts-regr
A1: HOLT'S MODEL REGRESSION SUMMARY OUTPUT
A3: Regression Statistics
A4: Multiple R | B4: 0.4813271965
A5: R Square | B5: 0.2316758701
A6: Adjusted R Square | B6: 0.1548434571
A7: Standard Error | B7: 10666.88337
A8: Observations | B8: 12
A10: ANOVA
B11: df | C11: SS | D11: MS | E11: F | F11: Significance F
A12: Regression | B12: 1 | C12: 343092657.3 | D12: 343092657.3 | E12: 3.015340286 | F12: 0.1131270224
A13: Residual | B13: 10 | C13: 1137824009 | D13: 113782400.9
A14: Total | B14: 11 | C14: 1480916667
B16: Coefficients | C16: Standard Error | D16: t Stat | E16: P-value | F16: Lower 95% | G16: Upper 95% | H16: Lower 95.0% | I16: Upper 95.0%
A17: Intercept | B17: 12015.15152 | C17: 6565.012894 | D17: 1.830179424 | E17: 0.09714726673 | F17: -2612.611308 | G17: 26642.91434 | H17: -2612.611308 | I17: 26642.91434
A18: X Variable 1 | B18: 1548.951049 | C18: 892.0095994 | D18: 1.73647352 | E18: 0.1131270224 | F18: -438.5705397 | G18: 3536.472638 | H18: -438.5705397 | I18: 3536.472638

Sheet deseasonalized
A1: Forecasts Using Trend and Seasonality Corrected Exponential Smoothing)
A2: Deseasonalizing Demand
A3: Period t | B3: Demand Dt | C3: Deseasonalized Demand (Eqn 7.2) | D3: Deseasonalized Demand (Eqn 7.3) | E3: Seasonal Factor (Eqn 7.5) | F3: Estimate (Eqn 7.6)
A4: 1 | B4: 8000 | D4: =('winters regr'!$B$17+'winters regr'!$B$18*deseasonalized!A4) -> 18962.79762 | E4: =B4/D4 -> 0.4218786785 | F4: =(E4+E8+E12)/3 -> 0.4716806719
A5: 2 | B5: 13000 | D5: =('winters regr'!$B$17+'winters regr'!$B$18*deseasonalized!A5) -> 19486.60714 | E5: =B5/D5 -> 0.6671248568 | F5: =(E5+E9+E13)/3 -> 0.683404436
A6: 3 | B6: 23000 | C6: =(B4+B8+2*SUM(B5:B7))/8 -> 19750 | D6: =('winters regr'!$B$17+'winters regr'!$B$18*deseasonalized!A6) -> 20010.41667 | E6: 1.149401353 | F6: =(E6+E10+E14)/3 -> 1.170708126
A7: 4 | B7: 34000 | C7: =(B5+B9+2*SUM(B6:B8))/8 -> 20625 | D7: =('winters regr'!$B$17+'winters regr'!$B$18*deseasonalized!A7) -> 20534.22619 | E7: 1.655772157 | F7: =(E7+E11+E15)/3 -> 1.664419812
A8: 5 | B8: 10000 | C8: 21250 | D8: =('winters regr'!$B$17+'winters regr'!$B$18*deseasonalized!A8) -> 21058.03571 | E8: 0.4748781005
A9: 6 | B9: 18000 | C9: 21750 | D9: =('winters regr'!$B$17+'winters regr'!$B$18*deseasonalized!A9) -> 21581.84524 | E9: 0.8340343377
A10: 7 | B10: 23000 | C10: 22500 | D10: =('winters regr'!$B$17+'winters regr'!$B$18*deseasonalized!A10) -> 22105.65476 | E10: 1.040457758
A11: 8 | B11: 38000 | C11: 22125 | D11: =('winters regr'!$B$17+'winters regr'!$B$18*deseasonalized!A11) -> 22629.46429 | E11: 1.679226672
A12: 9 | B12: 12000 | C12: 22625 | D12: =('winters regr'!$B$17+'winters regr'!$B$18*deseasonalized!A12) -> 23153.27381 | E12: 0.5182852368
A13: 10 | B13: 13000 | C13: 24125 | D13: =('winters regr'!$B$17+'winters regr'!$B$18*deseasonalized!A13) -> 23677.08333 | E13: 0.5490541135
A14: 11 | B14: 32000 | D14: =('winters regr'!$B$17+'winters regr'!$B$18*deseasonalized!A14) -> 24200.89286 | E14: 1.322265265
A15: 12 | B15: 41000 | D15: =('winters regr'!$B$17+'winters regr'!$B$18*deseasonalized!A15) -> 24724.70238 | E15: 1.658260608

Sheet winters regr
A1: WINTER'S MODEL REGRESSION SUMMARY OUTPUT
A3: Regression Statistics
A4: Multiple R | B4: 0.9580652366
A5: R Square | B5: 0.9178889975
A6: Adjusted R Square | B6: 0.9042038305
A7: Standard Error | B7: 414.5033124
A8: Observations | B8: 8
A10: ANOVA
B11: df | C11: SS | D11: MS | E11: F | F11: Significance F
A12: Regression | B12: 1 | C12: 11523809.52 | D12: 11523809.52 | E12: 67.07181523 | F12: 0.0001786086247
A13: Residual | B13: 6 | C13: 1030877.976 | D13: 171812.996
A14: Total | B14: 7 | C14: 12554687.5
B16: Coefficients | C16: Standard Error | D16: t Stat | E16: P-value | F16: Lower 95% | G16: Upper 95% | H16: Lower 95.0% | I16: Upper 95.0%
A17: Intercept | B17: 18438.9881 | C17: 440.8087079 | D17: 41.82990891 | E17: 1.248761647e-08 | F17: 17360.36726 | G17: 19517.60894 | H17: 17360.36726 | I17: 19517.60894
A18: X Variable 1 | B18: 523.8095238 | C18: 63.95924968 | D18: 8.18973841 | E18: 0.0001786086247 | F18: 367.3067633 | G18: 680.3122843 | H18: 367.3067633 | I18: 680.3122843

Sheet Error Summary
A1: Forecast Errors for Tahoe Salt Forecasting
A3: Forecasting Method | B3: MAD | C3: MAPE(%) | D3: TS Range
D4: Min | E4: Max
A5: Four-period moving average | B5: =Figure7.7!H14 -> 9718.75 | C5: =Figure7.7!J14 -> 49.13763644 | D5: =MIN(Figure7.7!$K$7:$K$14) -> -1.517684887 | E5: =MAX(Figure7.7!K7:K14) -> 2.20754717
A6: Simple exponential smoothing | B6: =Figure7.8!H15 -> 10208.44344 | C6: =Figure7.8!J15 -> 59.07905057 | D6: =MIN(Figure7.8!K4:K15) -> -1.377914331 | E6: =MAX(Figure7.8!K4:K15) -> 2.253344958
A7: Holt's model | B7: =Figure7.9!I15 -> 8835.844311 | C7: =Figure7.9!K15 -> 51.67840354 | D7: =MIN(Figure7.9!L4:L15) -> -2.14974865 | E7: =MAX(Figure7.9!L4:L15) -> 2
A8: Winter's model | B8: =Figure7.10!J15 -> 1468.927416 | C8: =Figure7.10!L15 -> 8.38852734 | D8: =MIN(Figure7.10!M4:M15) -> -2.740833148 | E8: =MAX(Figure7.10!M4:M15) -> 4
